fUST/lending_fUST_20250522
["ID","MTS","AMOUNT","RATE_DAILY","PERIOD"]
[361887171,1747869046764,-430.0,0.00021917,2]
[361887172,1747869046774,-430.0,0.00021917,2]
[361887173,1747869046784,-430.0,0.00021917,2]
[361887174,1747869046793,-430.0,0.00021917,2]
[361887175,1747869046803,-550.39,0.00021917,2]
[361887176,1747869046813,-430.0,0.00021917,2]
[361887177,1747869046823,-430.0,0.00021917,2]
[361887178,1747869046833,-430.0,0.00021917,2]
[361887179,1747869046843,-430.0,0.00021917,2]
[361887180,1747869046853,-430.0,0.00021917,2]
[361887181,1747869046863,-849.4,0.00021917,2]
[361887182,1747869046873,-435.34,0.00021917,2]
[361887183,1747869046882,-430.0,0.00021917,2]
[361887184,1747869046892,-430.0,0.00021917,2]
[361887185,1747869046902,-430.0,0.00021917,2]
[361887186,1747869046912,-430.0,0.00021917,2]
[361887187,1747869046922,-430.0,0.00021917,2]
[361887188,1747869046932,-430.0,0.00021917,2]
[361887189,1747869046942,-430.0,0.00021917,2]
[361887190,1747869046952,-430.0,0.00021917,2]
[361887191,1747869046961,-430.0,0.00021917,2]
[361887192,1747869046971,-430.0,0.00021917,2]
[361887193,1747869046981,-451.81794322,0.00021917,2]
[361887194,1747869046991,-430.0,0.00021917,2]
[361887195,1747869047001,-540.17026897,0.00021917,2]
[361887196,1747869047011,-430.0,0.00021917,2]
[361887197,1747869047021,-430.0,0.00021917,2]
[361887198,1747869047030,-430.0,0.00021917,2]
[361887199,1747869047039,-430.0,0.00021917,2]
[361887200,1747869047050,-1094.55,0.00021917,2]
[361887201,1747869047060,-430.0,0.00021917,2]
[361887202,1747869047070,-430.0,0.00021917,2]
[361887203,1747869047080,-430.0,0.00021917,2]
[361887204,1747869047090,-430.0,0.00021917,2]
[361887205,1747869047099,-430.0,0.00021917,2]
[361887206,1747869047111,-430.0,0.00021917,2]
[361887207,1747869047121,-430.0,0.00021917,2]
[361887208,1747869047131,-430.0,0.00021917,2]
[361887209,1747869047140,-399.60378205,0.00021917,2]
[361887210,1747869047150,-430.0,0.00021917,2]
[361887211,1747869047160,-327.15267801,0.00021917,2]
[361887212,1747869047169,-430.0,0.00021917,2]
[361887213,1747869047179,-476.95,0.00021917,2]
[361887214,1747869047190,-430.0,0.00021917,2]
[361887215,1747869047199,-1025.49,0.00021917,2]
[361887216,1747869047209,-430.0,0.00021917,2]
[361887217,1747869047218,-430.0,0.00021917,2]
[361887218,1747869047228,-430.0,0.00021917,2]
[361887219,1747869047237,-170.6,0.00021917,2]
[361887220,1747869047246,-430.0,0.00021917,2]
[361887221,1747869047256,-430.0,0.00021917,2]
[361887222,1747869047266,-430.0,0.00021917,2]
[361887223,1747869047275,-264.70988329,0.00021917,2]
[361887224,1747869047285,-430.0,0.00021917,2]
[361887225,1747869047295,-430.0,0.00021917,2]
[361887226,1747869047306,-463.5968159,0.00021917,2]
[361887227,1747869047317,-430.0,0.00021917,2]
[361887228,1747869047330,-430.0,0.00021917,2]
[361887229,1747869047342,-430.0,0.00021917,2]
[361887230,1747869047352,-430.0,0.00021917,2]
[361887231,1747869047362,-430.0,0.00021917,2]
[361887232,1747869047372,-201.14372197,0.00021918,2]
[361887233,1747869047382,-430.0,0.00021963,2]
[361887234,1747869047392,-430.0,0.00021963,2]
[361887235,1747869047402,-430.0,0.00021963,2]
[361887236,1747869047412,-450.0,0.00021963,2]
[361887237,1747869047421,-350.0,0.00021963,2]
[361887238,1747869047431,-350.0,0.00021963,2]
[361887239,1747869047442,-350.0,0.00021963,2]
[361887240,1747869047452,-430.0,0.00021965,2]
[361887241,1747869047462,-430.0,0.00021965,2]
[361887242,1747869047471,-430.0,0.00021965,2]
[361887243,1747869047481,-430.0,0.00021965,2]
[361887244,1747869047491,-151.0,0.00021967,7]
[361887245,1747869047501,-230.075229,0.00021967,7]
[361887246,1747869047511,-807.12252318,0.00022038,6]
[361887247,1747869047522,-500.0,0.00022054,2]
[361887248,1747869047534,-807.12252318,0.00022176,6]
[361887249,1747869047543,-447.78756572,0.0002219,2]
[361887250,1747869047553,-500.0,0.0002219,2]
[361887251,1747869047563,-500.0,0.0002219,2]
[361887252,1747869047575,-307.75132578,0.0002219,2]
[361887253,1747869047584,-300.0,0.0002219,2]
[361887254,1747869047594,-268.28,0.00022191,2]
[361887255,1747869047604,-430.0,0.00022191,2]
[361887256,1747869047613,-430.0,0.00022191,2]
[361887257,1747869047623,-500.0,0.00022191,2]
[361887258,1747869047633,-430.0,0.00022191,2]
[361887259,1747869047646,-186.94084095,0.00022191,2]
[361887260,1747869047656,-430.0,0.00022191,2]
[361887261,1747869047666,-430.0,0.00022191,2]
[361887262,1747869047675,-203.37519004,0.00022191,2]
[361887263,1747869047687,-430.0,0.00022191,2]
[361887264,1747869047696,-500.0,0.00022191,2]
[361887265,1747869047706,-430.0,0.00022191,2]
[361887266,1747869047718,-430.0,0.00022191,2]
[361887267,1747869047730,-430.0,0.00022191,2]
[361887268,1747869047740,-430.0,0.00022191,2]
[361887269,1747869047749,-430.0,0.00022191,2]
[361887270,1747869047760,-430.0,0.00022191,2]
[361887271,1747869047770,-234.08680792,0.00022191,2]
[361887272,1747869047780,-673.6,0.00022191,2]
[361887273,1747869047790,-922.75,0.00022191,2]
[361887274,1747869047800,-430.0,0.00022191,2]
[361887275,1747869047810,-416.98,0.00022191,2]
[361887276,1747869047821,-430.0,0.00022191,2]
[361887277,1747869047831,-430.0,0.00022191,2]
[361887278,1747869047840,-430.0,0.00022191,2]
[361887279,1747869047850,-430.0,0.00022191,2]
[361887280,1747869047860,-430.0,0.00022191,2]
[361887281,1747869047870,-430.0,0.00022191,2]
[361887282,1747869047880,-333.10296041,0.00022191,2]
[361887283,1747869047889,-430.0,0.00022191,2]
[361887284,1747869047899,-430.0,0.00022191,2]
[361887285,1747869047909,-430.0,0.00022191,2]
[361887286,1747869047918,-490.0,0.00022191,2]
[361887287,1747869047928,-947.37,0.00022191,2]
[361887288,1747869047938,-430.0,0.00022191,2]
[361887289,1747869047947,-430.0,0.00022191,2]
[361887290,1747869047957,-295.70131236,0.00022191,2]
[361887291,1747869047967,-430.0,0.00022191,2]
[361887292,1747869047977,-1476.09,0.00022191,2]
[361887293,1747869047987,-845.81,0.00022191,2]
[361887294,1747869047997,-430.0,0.00022191,2]
[361887295,1747869048007,-430.0,0.00022191,2]
[361887296,1747869048016,-430.0,0.00022191,2]
[361887297,1747869048026,-430.0,0.00022191,2]
[361887298,1747869048048,-430.0,0.00022191,2]
[361887299,1747869048058,-430.0,0.00022191,2]
[361887300,1747869048067,-430.0,0.00022191,2]
[361887301,1747869048078,-430.0,0.00022191,2]
[361887302,1747869048088,-430.0,0.00022191,2]
[361887303,1747869048099,-430.0,0.00022191,2]
[361887304,1747869048109,-430.0,0.00022191,2]
[361887305,1747869048119,-198.93,0.00022191,2]
[361887306,1747869048128,-430.0,0.00022191,2]
[361887307,1747869048139,-430.0,0.00022191,2]
[361887308,1747869048148,-430.0,0.00022191,2]
[361887309,1747869048158,-550.39,0.00022191,2]
[361887310,1747869048167,-430.0,0.00022191,2]
[361887311,1747869048180,-350.0,0.00022191,2]
[361887312,1747869048190,-550.0,0.00022191,2]
[361887313,1747869048200,-430.0,0.00022191,2]
[361887314,1747869048212,-849.4,0.00022191,2]
[361887315,1747869048222,-435.34,0.00022191,2]
[361887316,1747869048232,-430.0,0.00022191,2]
[361887317,1747869048242,-430.0,0.00022191,2]
[361887318,1747869048251,-430.0,0.00022191,2]
[361887319,1747869048261,-430.0,0.00022191,2]
[361887320,1747869048271,-430.0,0.00022191,2]
[361887321,1747869048281,-430.0,0.00022191,2]
[361887322,1747869048290,-152.15,0.00022191,2]
[361887323,1747869048300,-430.0,0.00022191,2]
[361887324,1747869048310,-430.0,0.00022191,2]
[361887325,1747869048320,-430.0,0.00022191,2]
[361887326,1747869048330,-430.0,0.00022191,2]
[361887327,1747869048340,-186.06,0.00022191,2]
[361887328,1747869048350,-1094.55,0.00022191,2]
[361887329,1747869048359,-430.0,0.00022191,2]
[361887330,1747869048368,-430.0,0.00022191,2]
[361887331,1747869048378,-430.0,0.00022191,2]
[361887332,1747869048388,-430.0,0.00022191,2]
[361887333,1747869048397,-430.0,0.00022191,2]
[361887334,1747869048407,-430.0,0.00022191,2]
[361887335,1747869048416,-430.0,0.00022191,2]
[361887336,1747869048426,-430.0,0.00022191,2]
[361887337,1747869048436,-476.95,0.00022191,2]
[361887338,1747869048446,-430.0,0.00022191,2]
[361887339,1747869048456,-1025.49,0.00022191,2]
[361887340,1747869048465,-430.0,0.00022191,2]
[361887341,1747869048475,-430.0,0.00022191,2]
[361887342,1747869048485,-430.0,0.00022191,2]
[361887343,1747869048494,-430.0,0.00022191,2]
[361887344,1747869048504,-430.0,0.00022191,2]
[361887345,1747869048513,-430.0,0.00022191,2]
[361887346,1747869048523,-430.0,0.00022191,2]
[361887347,1747869048532,-150.11812684,0.00022191,2]
[361887348,1747869048542,-500.0,0.00022236,2]
[361887349,1747869048552,-151.0,0.00022237,7]
[361887350,1747869048563,-430.0,0.00022237,2]
[361887351,1747869048574,-151.0,0.00022239,7]
[361887352,1747869048583,-430.0,0.00022239,2]
[361887353,1747869048594,-430.0,0.00022239,2]
[361887354,1747869048604,-430.0,0.00022239,2]
[361887355,1747869048615,-151.0,0.00022241,7]
[361887356,1747869048625,-807.12252318,0.00022314,7]
[361887357,1747869048637,-807.12252318,0.00022452,7]
[361887358,1747869048646,-430.0,0.00022465,2]
[361887359,1747869048660,-430.0,0.00022465,2]
[361887360,1747869048671,-500.0,0.00022465,2]
[361887361,1747869048681,-430.0,0.00022465,2]
[361887362,1747869048695,-555.52924367,0.00022465,2]
[361887363,1747869048866,-430.0,0.00022465,2]
[361887364,1747869048883,-430.0,0.00022465,2]
[361887365,1747869048894,-500.0,0.00022465,2]
[361887366,1747869048903,-430.0,0.00022465,2]
[361887367,1747869048913,-430.0,0.00022465,2]
[361887368,1747869048923,-430.0,0.00022465,2]
[361887369,1747869048933,-430.0,0.00022465,2]
[361887370,1747869048943,-430.0,0.00022465,2]
[361887371,1747869048953,-430.0,0.00022465,2]
[361887372,1747869048963,-673.6,0.00022465,2]
[361887373,1747869048973,-922.75,0.00022465,2]
[361887374,1747869048983,-430.0,0.00022465,2]
[361887375,1747869048993,-380.57029281,0.00022465,2]
[361887376,1747869049002,-430.0,0.00022465,2]
[361887377,1747869049012,-430.0,0.00022465,2]
[361887378,1747869049022,-430.0,0.00022465,2]
[361887379,1747869049032,-430.0,0.00022465,2]
[361887380,1747869049042,-430.0,0.00022465,2]
[361887381,1747869049051,-207.11079253,0.00022465,2]
[361887382,1747869049062,-430.0,0.00022465,2]
[361887383,1747869049072,-947.37,0.00022465,2]
[361887384,1747869049082,-430.0,0.00022465,2]
[361887385,1747869049091,-430.0,0.00022465,2]
[361887386,1747869049101,-430.0,0.00022465,2]
[361887387,1747869049111,-1476.09,0.00022465,2]
[361887388,1747869049123,-845.81,0.00022465,2]
[361887389,1747869049134,-430.0,0.00022465,2]
[361887390,1747869049144,-430.0,0.00022465,2]
[361887391,1747869049154,-430.0,0.00022465,2]
[361887392,1747869049163,-430.0,0.00022465,2]
[361887393,1747869049177,-430.0,0.00022465,2]
[361887394,1747869049194,-430.0,0.00022465,2]
[361887395,1747869049204,-430.0,0.00022465,2]
[361887396,1747869049213,-430.0,0.00022465,2]
[361887397,1747869049222,-430.0,0.00022465,2]
[361887398,1747869049232,-430.0,0.00022465,2]
[361887399,1747869049244,-430.0,0.00022465,2]
[361887400,1747869049256,-430.0,0.00022465,2]
[361887401,1747869049267,-430.0,0.00022465,2]
[361887402,1747869049277,-430.0,0.00022465,2]
[361887403,1747869049287,-550.39,0.00022465,2]
[361887404,1747869049297,-430.0,0.00022465,2]
[361887405,1747869049307,-430.0,0.00022465,2]
[361887406,1747869049316,-849.4,0.00022465,2]
[361887407,1747869049327,-435.34,0.00022465,2]
[361887408,1747869049337,-430.0,0.00022465,2]
[361887409,1747869049347,-430.0,0.00022465,2]
[361887410,1747869049357,-430.0,0.00022465,2]
[361887411,1747869049367,-430.0,0.00022465,2]
[361887412,1747869049376,-430.0,0.00022465,2]
[361887413,1747869049386,-430.0,0.00022465,2]
[361887414,1747869049395,-430.0,0.00022465,2]
[361887415,1747869049405,-430.0,0.00022465,2]
[361887416,1747869049415,-430.0,0.00022465,2]
[361887417,1747869049425,-1094.55,0.00022465,2]
[361887418,1747869049435,-430.0,0.00022465,2]
[361887419,1747869049445,-430.0,0.00022465,2]
[361887420,1747869049454,-430.0,0.00022465,2]
[361887421,1747869049464,-430.0,0.00022465,2]
[361887422,1747869049474,-430.0,0.00022465,2]
[361887423,1747869049483,-430.0,0.00022465,2]
[361887424,1747869049493,-430.0,0.00022465,2]
[361887425,1747869049503,-430.0,0.00022465,2]
[361887426,1747869049513,-476.95,0.00022465,2]
[361887427,1747869049522,-430.0,0.00022465,2]
[361887428,1747869049532,-1025.49,0.00022465,2]
[361887429,1747869049542,-430.0,0.00022465,2]
[361887430,1747869049551,-430.0,0.00022465,2]
[361887431,1747869049561,-430.0,0.00022465,2]
[361887432,1747869049572,-430.0,0.00022465,2]
[361887433,1747869049582,-430.0,0.00022465,2]
[361887434,1747869049591,-430.0,0.00022465,2]
[361887435,1747869049600,-430.0,0.00022465,2]
[361887436,1747869049610,-500.0,0.00022486,2]
[361887437,1747869049619,-159.919409,0.00022505,2]
[361887438,1747869049629,-151.0,0.00022511,7]
[361887439,1747869049644,-430.0,0.00022511,2]
[361887440,1747869049653,-391.64304039,0.00022513,2]
[361887441,1747869049663,-500.0,0.00022559,2]
[361887442,1747869049673,-500.0,0.00022559,2]
[361887443,1747869049683,-300.0,0.00022582,2]
[361887444,1747869049692,-807.12252318,0.0002259,7]
[361887445,1747869049702,-500.0,0.00022603,2]
[361887446,1747869049711,-1204.06339544,0.00022639,2]
[361887447,1747869049721,-807.12252318,0.00022728,7]
[361887448,1747869049731,-430.0,0.00022739,2]
[361887449,1747869049740,-417.24058353,0.00022739,2]
[361887450,1747869049750,-500.0,0.00022739,2]
[361887451,1747869049761,-430.0,0.00022739,2]
[361887452,1747869049772,-430.0,0.00022739,2]
[361887453,1747869049781,-430.0,0.00022739,2]
[361887454,1747869049791,-448.77,0.00022739,2]
[361887455,1747869049802,-430.0,0.00022739,2]
[361887456,1747869049811,-430.0,0.00022739,2]
[361887457,1747869049821,-178.06771481,0.00022739,2]
[361887458,1747869049831,-430.0,0.00022739,2]
[361887459,1747869049841,-673.6,0.00022739,2]
[361887460,1747869049851,-922.75,0.00022739,2]
[361887461,1747869049860,-430.0,0.00022739,2]
[361887462,1747869049869,-430.0,0.00022739,2]
[361887463,1747869049879,-463.71,0.00022739,2]
[361887464,1747869049888,-430.0,0.00022739,2]
[361887465,1747869049898,-455.45174444,0.00022739,2]
[361887466,1747869049907,-430.0,0.00022739,2]
[361887467,1747869049918,-947.37,0.00022739,2]
[361887468,1747869049928,-430.0,0.00022739,2]
[361887469,1747869049939,-1476.09,0.00022739,2]
[361887470,1747869049948,-845.81,0.00022739,2]
[361887471,1747869049958,-430.0,0.00022739,2]
[361887472,1747869049967,-430.0,0.00022739,2]
[361887473,1747869049976,-430.0,0.00022739,2]
[361887474,1747869049986,-430.0,0.00022739,2]
[361887475,1747869049995,-430.0,0.00022739,2]
[361887476,1747869050006,-430.0,0.00022739,2]
[361887477,1747869050016,-430.0,0.00022739,2]
[361887478,1747869050026,-430.0,0.00022739,2]
[361887479,1747869050035,-430.0,0.00022739,2]
[361887480,1747869050045,-430.0,0.00022739,2]
[361887481,1747869050054,-430.0,0.00022739,2]
[361887482,1747869050064,-430.0,0.00022739,2]
[361887483,1747869050075,-430.0,0.00022739,2]
[361887484,1747869050086,-430.0,0.00022739,2]
[361887485,1747869050095,-550.39,0.00022739,2]
[361887486,1747869050107,-430.0,0.00022739,2]
[361887487,1747869050117,-180.0,0.00022739,2]
[361887488,1747869050127,-849.4,0.00022739,2]
[361887489,1747869050136,-435.34,0.00022739,2]
[361887490,1747869050161,-430.0,0.00022739,2]
[361887491,1747869050171,-430.0,0.00022739,2]
[361887492,1747869050181,-430.0,0.00022739,2]
[361887493,1747869050191,-430.0,0.00022739,2]
[361887494,1747869050201,-430.0,0.00022739,2]
[361887495,1747869050211,-430.0,0.00022739,2]
[361887496,1747869050221,-430.0,0.00022739,2]
[361887497,1747869050231,-430.0,0.00022739,2]
[361887498,1747869050240,-430.0,0.00022739,2]
[361887499,1747869050251,-1094.55,0.00022739,2]
[361887500,1747869050261,-430.0,0.00022739,2]
[361887501,1747869050271,-430.0,0.00022739,2]
[361887502,1747869050280,-430.0,0.00022739,2]
[361887503,1747869050290,-430.0,0.00022739,2]
[361887504,1747869050300,-430.0,0.00022739,2]
[361887505,1747869050311,-430.0,0.00022739,2]
[361887506,1747869050320,-430.0,0.00022739,2]
[361887507,1747869050331,-476.95,0.00022739,2]
[361887508,1747869050340,-300.0,0.00022739,2]
[361887509,1747869050350,-430.0,0.00022739,2]
[361887510,1747869050360,-1025.49,0.00022739,2]
[361887511,1747869050369,-430.0,0.00022739,2]
[361887512,1747869050379,-430.0,0.00022739,2]
[361887513,1747869050389,-430.0,0.00022739,2]
[361887514,1747869050399,-430.0,0.00022739,2]
[361887515,1747869050409,-430.0,0.00022739,2]
[361887516,1747869050419,-430.0,0.00022739,2]
[361887517,1747869050429,-500.0,0.00022784,2]
[361887518,1747869050438,-430.0,0.00022785,2]
[361887519,1747869050448,-160.0,0.0002279,2]
[361887520,1747869050458,-422.71322487,0.0002279,2]
[361887521,1747869050468,-160.0,0.0002279,2]
[361887522,1747869050478,-12643.00196899,0.0002279,2]
[361887523,1747869050489,-160.0,0.0002279,2]
[361887524,1747869050499,-160.0,0.0002279,2]
[361887525,1747869050510,-894.64583333,0.0002279,2]
[361887526,1747869050521,-807.12252318,0.00022866,8]
[361887527,1747869050530,-339.036411,0.00022921,2]
[361887528,1747869050540,-807.12252318,0.00023003,8]
[361887529,1747869050550,-430.0,0.00023013,2]
[361887530,1747869050560,-500.0,0.00023013,2]
[361887531,1747869050570,-430.0,0.00023013,2]
[361887532,1747869050580,-430.0,0.00023013,2]
[361887533,1747869050592,-430.0,0.00023013,2]
[361887534,1747869050603,-430.0,0.00023013,2]
[361887535,1747869050613,-430.0,0.00023013,2]
[361887536,1747869050624,-430.0,0.00023013,2]
[361887537,1747869050637,-673.6,0.00023013,2]
[361887538,1747869050648,-922.75,0.00023013,2]
[361887539,1747869050659,-430.0,0.00023013,2]
[361887540,1747869050669,-430.0,0.00023013,2]
[361887541,1747869050679,-430.0,0.00023013,2]
[361887542,1747869050690,-430.0,0.00023013,2]
[361887543,1747869050699,-947.37,0.00023013,2]
[361887544,1747869050710,-430.0,0.00023013,2]
[361887545,1747869050721,-1476.09,0.00023013,2]
[361887546,1747869050731,-845.81,0.00023013,2]
[361887547,1747869050741,-430.0,0.00023013,2]
[361887548,1747869050752,-430.0,0.00023013,2]
[361887549,1747869050763,-430.0,0.00023013,2]
[361887550,1747869050773,-430.0,0.00023013,2]
[361887551,1747869050783,-430.0,0.00023013,2]
[361887552,1747869050793,-430.0,0.00023013,2]
[361887553,1747869050804,-430.0,0.00023013,2]
[361887554,1747869050815,-430.0,0.00023013,2]
[361887555,1747869050826,-430.0,0.00023013,2]
[361887556,1747869050835,-430.0,0.00023013,2]
[361887557,1747869050845,-430.0,0.00023013,2]
[361887558,1747869050856,-430.0,0.00023013,2]
[361887559,1747869050866,-430.0,0.00023013,2]
[361887560,1747869050877,-430.0,0.00023013,2]
[361887561,1747869050888,-550.39,0.00023013,2]
[361887562,1747869050898,-430.0,0.00023013,2]
[361887563,1747869050909,-849.4,0.00023013,2]
[361887564,1747869050918,-435.34,0.00023013,2]
[361887565,1747869050928,-430.0,0.00023013,2]
[361887566,1747869050938,-430.0,0.00023013,2]
[361887567,1747869050948,-430.0,0.00023013,2]
[361887568,1747869050958,-504.57,0.00023013,2]
[361887569,1747869050968,-430.0,0.00023013,2]
[361887570,1747869050978,-430.0,0.00023013,2]
[361887571,1747869050988,-430.0,0.00023013,2]
[361887572,1747869050998,-430.0,0.00023013,2]
[361887573,1747869051008,-430.0,0.00023013,2]
[361887574,1747869051018,-1094.55,0.00023013,2]
[361887575,1747869051028,-439.09272146,0.00023013,2]
[361887576,1747869051038,-430.0,0.00023013,2]
[361887577,1747869051047,-401.61391532,0.00023013,2]
[361887578,1747869051057,-430.0,0.00023013,2]
[361887579,1747869051067,-430.0,0.00023013,2]
[361887580,1747869051078,-430.0,0.00023013,2]
[361887581,1747869051088,-430.0,0.00023013,2]
[361887582,1747869051098,-476.95,0.00023013,2]
[361887583,1747869051107,-430.0,0.00023013,2]
[361887584,1747869051117,-1025.49,0.00023013,2]
[361887585,1747869051126,-430.0,0.00023013,2]
[361887586,1747869051136,-430.0,0.00023013,2]
[361887587,1747869051146,-430.0,0.00023013,2]
[361887588,1747869051155,-430.0,0.00023013,2]
[361887589,1747869051165,-430.0,0.00023013,2]
[361887590,1747869051174,-430.0,0.00023013,2]
[361887591,1747869051185,-430.0,0.00023059,2]
[361887592,1747869051195,-807.12252318,0.00023141,8]
[361887593,1747869051206,-1000.0,0.00023151,2]
[361887594,1747869051218,-1204.06339542,0.00023179,2]
[361887595,1747869051228,-705.9,0.00023247,5]
[361887596,1747869051238,-269.5,0.0002327,120]
[361887597,1747869051250,-807.12252318,0.00023279,8]
[361887598,1747869051261,-150.5,0.0002328,120]
[361887599,1747869051270,-430.0,0.00023287,2]
[361887600,1747869051279,-604.85,0.00023287,2]
[361887601,1747869051289,-430.0,0.00023287,2]
[361887602,1747869051299,-430.0,0.00023287,2]
[361887603,1747869051308,-430.0,0.00023287,2]
[361887604,1747869051318,-430.0,0.00023287,2]
[361887605,1747869051328,-430.0,0.00023287,2]
[361887606,1747869051338,-430.0,0.00023287,2]
[361887607,1747869051349,-673.6,0.00023287,2]
[361887608,1747869051358,-922.75,0.00023287,2]
[361887609,1747869051368,-430.0,0.00023287,2]
[361887610,1747869051378,-430.0,0.00023287,2]
[361887611,1747869051390,-430.0,0.00023287,2]
[361887612,1747869051401,-430.0,0.00023287,2]
[361887613,1747869051412,-947.37,0.00023287,2]
[361887614,1747869051422,-430.0,0.00023287,2]
[361887615,1747869051432,-1476.09,0.00023287,2]
[361887616,1747869051444,-845.81,0.00023287,2]
[361887617,1747869051454,-475.92955437,0.00023287,2]
[361887618,1747869051463,-430.0,0.00023287,2]
[361887619,1747869051474,-430.0,0.00023287,2]
[361887620,1747869051484,-430.0,0.00023287,2]
[361887621,1747869051493,-430.0,0.00023287,2]
[361887622,1747869051503,-430.0,0.00023287,2]
[361887623,1747869051514,-430.0,0.00023287,2]
[361887624,1747869051524,-430.0,0.00023287,2]
[361887625,1747869051533,-161.10323056,0.00023287,2]
[361887626,1747869051544,-430.0,0.00023287,2]
[361887627,1747869051554,-430.0,0.00023287,2]
[361887628,1747869051565,-430.0,0.00023287,2]
[361887629,1747869051575,-430.0,0.00023287,2]
[361887630,1747869051585,-430.0,0.00023287,2]
[361887631,1747869051595,-550.39,0.00023287,2]
[361887632,1747869051604,-430.0,0.00023287,2]
[361887633,1747869051615,-849.4,0.00023287,2]
[361887634,1747869051625,-430.0,0.00023287,2]
[361887635,1747869051637,-435.34,0.00023287,2]
[361887636,1747869051648,-430.0,0.00023287,2]
[361887637,1747869051657,-430.0,0.00023287,2]
[361887638,1747869051666,-430.0,0.00023287,2]
[361887639,1747869051676,-430.0,0.00023287,2]
[361887640,1747869051686,-430.0,0.00023287,2]
[361887641,1747869051696,-430.0,0.00023287,2]
[361887642,1747869051705,-430.0,0.00023287,2]
[361887643,1747869051715,-239.16964589,0.00023287,2]
[361887644,1747869051726,-1094.55,0.00023287,2]
[361887645,1747869051736,-430.0,0.00023287,2]
[361887646,1747869051746,-430.0,0.00023287,2]
[361887647,1747869051756,-430.0,0.00023287,2]
[361887648,1747869051766,-430.0,0.00023287,2]
[361887649,1747869051775,-476.95,0.00023287,2]
[361887650,1747869051785,-430.0,0.00023287,2]
[361887651,1747869051934,-1025.49,0.00023287,2]
[361887652,1747869051945,-430.0,0.00023287,2]
[361887653,1747869051955,-430.0,0.00023287,2]
[361887654,1747869051964,-430.0,0.00023287,2]
[361887655,1747869051974,-430.0,0.00023287,2]
[361887656,1747869051985,-430.0,0.00023287,2]
[361887657,1747869051995,-430.0,0.00023287,2]
[361887658,1747869052005,-5120.92,0.00023287,2]
[361887659,1747869052014,-500.0,0.00023332,2]
[361887660,1747869052024,-430.0,0.00023333,2]
[361887661,1747869052034,-705.9,0.00023347,3]
[361887662,1747869052043,-807.12252318,0.00023417,9]
[361887663,1747869052053,-705.9,0.00023447,7]
[361887664,1747869052062,-705.9,0.00023547,2]
[361887665,1747869052071,-807.12252318,0.00023555,9]
[361887666,1747869052081,-195.5,0.00023558,120]
[361887667,1747869052090,-430.0,0.00023561,2]
[361887668,1747869052101,-430.0,0.00023561,2]
[361887669,1747869052113,-430.0,0.00023561,2]
[361887670,1747869052124,-430.0,0.00023561,2]